bitfinex/quotes_BTCUSD_20250615
["timestamp","ask_amount","ask_price","bid_price","bid_amount"]
[1749973595112,0.01247247,105560.0,105550.0,0.91239827]
[1749973595300,0.01247247,105560.0,105550.0,0.8879583]
[1749973595557,0.02194503,105560.0,105550.0,0.91236512]
[1749973595759,0.02194503,105560.0,105550.0,0.9123648]
[1749973595976,0.02194503,105560.0,105550.0,0.91236456]
[1749973596199,0.02194503,105560.0,105550.0,0.93405048]
[1749973596414,0.01247247,105560.0,105550.0,0.93405048]
[1749973596623,0.01247247,105560.0,105550.0,0.94070656]
[1749973596867,0.01247247,105560.0,105550.0,0.92295678]
[1749973597097,0.003,105560.0,105550.0,1.01919854]
[1749973597320,0.003,105560.0,105550.0,1.13309744]
[1749973597555,0.003,105560.0,105550.0,1.1676784]
[1749973597770,0.003,105560.0,105550.0,1.18542713]
[1749973597993,0.003,105560.0,105550.0,1.18542716]
[1749973598210,0.003,105560.0,105550.0,1.17697137]
[1749973598423,0.003,105560.0,105550.0,1.17031549]
[1749973598636,0.003,105560.0,105550.0,1.19472035]
[1749973598854,0.003,105560.0,105550.0,1.17697136]
[1749973599071,0.003,105560.0,105550.0,1.18806448]
[1749973599281,0.003,105560.0,105550.0,1.19472034]
[1749973599495,0.003,105560.0,105550.0,1.19472022]
[1749973599703,0.003,105560.0,105550.0,1.18806406]
[1749973599913,0.003,105560.0,105550.0,1.1663774]
[1749973600146,0.002,105560.0,105550.0,1.16637716]
[1749973600367,0.04913805,105590.0,105570.0,0.1989195]
[1749973600599,0.01838556,105590.0,105580.0,0.85716902]
[1749973600806,0.01898734,105590.0,105580.0,0.88156906]
[1749973601020,0.01898734,105590.0,105580.0,0.86382356]
[1749973601232,4.751e-05,105590.0,105580.0,0.88156895]
[1749973601462,4.751e-05,105590.0,105580.0,0.88156891]
[1749973601676,0.00951738,105590.0,105580.0,0.8815689]
[1749973601910,0.00204751,105590.0,105580.0,0.8825689]
[1749973602122,0.01151738,105590.0,105580.0,0.85816902]
[1749973602336,0.00204751,105590.0,105580.0,0.85816902]
[1749973602545,0.01251738,105590.0,105580.0,0.8825689]
[1749973602769,0.01251738,105590.0,105580.0,0.43780308]
[1749973603001,0.00304751,105590.0,105580.0,1.28617865]
[1749973603283,0.00304751,105590.0,105580.0,1.2389514]
[1749973603519,0.00304751,105590.0,105580.0,1.41891744]
[1749973603746,0.2512698,105590.0,105580.0,0.05386398]
[1749973603965,0.06185793,105590.0,105580.0,0.43776343]
[1749973604178,0.04091738,105590.0,105580.0,0.41236311]
[1749973604390,0.05038752,105590.0,105580.0,0.43676402]
[1749973604625,0.05038752,105590.0,105580.0,0.44176405]
[1749973604836,0.04938752,105590.0,105580.0,0.44076405]
[1749973605047,0.51309407,105590.0,105580.0,0.4230179]
[1749973605254,0.05985775,105590.0,105580.0,0.44076401]
[1749973605466,0.05985775,105590.0,105580.0,0.43676401]
[1749973605670,0.05038752,105590.0,105580.0,0.43010922]
[1749973605887,0.49515334,105590.0,105580.0,0.4200179]
[1749973606088,0.49515334,105590.0,105580.0,0.43772401]
[1749973606296,0.4856832,105590.0,105580.0,0.43772401]
[1749973606500,0.04091738,105590.0,105580.0,0.43772406]
[1749973606707,0.05038752,105590.0,105580.0,0.43106926]
[1749973606918,0.05985775,105590.0,105580.0,0.43772406]
[1749973607129,0.05985775,105590.0,105580.0,0.43772401]
[1749973607338,0.05038743,105590.0,105580.0,0.43772401]
[1749973607544,0.04091738,105590.0,105580.0,0.86474367]
[1749973607752,0.02551738,105590.0,105580.0,0.86474357]
[1749973607956,0.03498743,105590.0,105580.0,0.41997763]
[1749973608163,0.01051729,105590.0,105580.0,0.90186795]
[1749973608381,0.01051729,105590.0,105580.0,0.90186788]
[1749973608583,0.00104751,105590.0,105580.0,0.90186788]
[1749973608794,0.01051729,105590.0,105580.0,0.45044761]
[1749973609011,0.01051729,105590.0,105580.0,0.90186791]
[1749973609227,0.01051729,105590.0,105580.0,0.89521343]
[1749973609432,0.00104751,105590.0,105580.0,0.89521343]
[1749973609703,0.00104751,105590.0,105580.0,0.90186791]
[1749973609912,0.01051738,105590.0,105580.0,0.41997759]
[1749973610119,0.02551738,105590.0,105580.0,0.86474341]
[1749973610315,0.03498743,105590.0,105580.0,0.86475568]
[1749973610534,0.03498734,105590.0,105580.0,0.86475568]
[1749973610752,0.01604751,105590.0,105580.0,0.95423815]
[1749973610960,0.01051729,105590.0,105580.0,0.95423815]
[1749973611164,0.01051729,105590.0,105580.0,0.9609049]
[1749973611376,0.01051738,105590.0,105580.0,0.95423815]
[1749973611592,0.01051738,105590.0,105580.0,0.50947233]
[1749973611801,0.01051738,105590.0,105580.0,0.41994761]
[1749973612008,0.01998734,105590.0,105580.0,0.86471343]
[1749973612216,0.01604751,105590.0,105580.0,0.86471343]
[1749973612426,0.02551738,105590.0,105580.0,0.85808893]
[1749973612858,0.02551738,105590.0,105580.0,0.88237877]
[1749973613055,0.01604751,105590.0,105580.0,0.88237877]
[1749973613261,0.00104751,105590.0,105580.0,0.88237877]
[1749973613471,0.00104751,105590.0,105580.0,0.87575427]
[1749973613678,0.01051738,105590.0,105580.0,0.89235175]
[1749973614097,0.01051738,105590.0,105580.0,0.88572725]
[1749973614301,0.01051738,105590.0,105580.0,0.89235175]
[1749973614508,0.01051729,105590.0,105580.0,0.88572745]
[1749973614714,0.01051729,105590.0,105580.0,0.88572718]
[1749973615127,0.01051729,105590.0,105580.0,0.89235161]
[1749973615336,0.01051729,105590.0,105580.0,0.87468637]
[1749973615539,0.01051729,105590.0,105580.0,0.89235159]
[1749973615753,0.01051729,105590.0,105580.0,0.89235163]
[1749973616172,0.01051729,105590.0,105580.0,0.89235168]
[1749973616383,0.02551729,105590.0,105580.0,0.86806191]
[1749973616589,0.02551729,105590.0,105580.0,0.89235169]
[1749973617413,0.02551729,105590.0,105580.0,0.88572721]
[1749973617615,0.01604751,105590.0,105580.0,0.87468639]
[1749973617826,0.01051729,105590.0,105580.0,0.88572721]
[1749973618027,0.00104751,105590.0,105580.0,0.89235169]
[1749973618236,0.00104751,105590.0,105580.0,0.89235168]
[1749973618439,0.00104751,105590.0,105580.0,0.89235169]
[1749973618642,0.00104751,105590.0,105580.0,0.87468639]
[1749973618843,0.00104751,105590.0,105580.0,0.88574765]
[1749973619041,0.00104751,105590.0,105580.0,0.87469406]
[1749973619249,0.00104751,105590.0,105580.0,0.86806191]
[1749973619452,0.00104751,105590.0,105580.0,0.88574765]
[1749973619876,0.01051738,105590.0,105580.0,0.8923798]
[1749973620084,0.01051738,105590.0,105580.0,0.87469406]
[1749973620289,0.01051738,105590.0,105580.0,0.8923798]
[1749973620496,0.01051738,105590.0,105580.0,0.87469406]
[1749973620706,0.01051738,105590.0,105580.0,0.8923798]
[1749973620910,0.00104751,105590.0,105580.0,0.86472108]
[1749973621119,0.01051738,105590.0,105580.0,0.86472108]
[1749973621530,0.00104751,105590.0,105580.0,0.86472108]
[1749973622605,0.00104751,105590.0,105580.0,0.85808893]
[1749973623029,0.00104751,105590.0,105580.0,0.9608703]
[1749973624291,0.00104751,105590.0,105580.0,0.95423815]
[1749973624502,0.00104751,105590.0,105580.0,0.9608703]
[1749973624751,0.00104751,105590.0,105580.0,0.85808893]
[1749973624956,0.00104751,105590.0,105580.0,0.90300409]
[1749973625162,0.00104751,105590.0,105580.0,0.90967038]
[1749973625590,0.00104751,105590.0,105580.0,0.90967049]
[1749973625796,0.00104751,105590.0,105580.0,0.91910409]
[1749973626014,0.00104751,105590.0,105580.0,0.57715389]
[1749973626219,0.00104751,105590.0,105580.0,1.02191971]
[1749973626856,0.00104751,105590.0,105580.0,1.03969679]
[1749973627071,0.00104751,105590.0,105580.0,1.03303039]
[1749973627288,0.00104751,105590.0,105580.0,1.02191971]
[1749973627500,0.00104751,105590.0,105580.0,1.03969679]
[1749973627711,0.00104751,105590.0,105580.0,1.63237557]
[1749973627940,0.00104751,105590.0,105580.0,1.64306803]
[1749973628154,0.00104751,105590.0,105580.0,1.54691797]
[1749973628361,0.00104751,105590.0,105580.0,1.50916444]
[1749973628588,0.00104751,105590.0,105580.0,1.52693949]
[1749973628796,0.00104751,105590.0,105580.0,1.52693956]
[1749973629007,0.00104751,105590.0,105580.0,1.52027392]
[1749973629226,0.00104751,105590.0,105580.0,1.52693956]
[1749973629442,0.00104751,105590.0,105580.0,1.50249887]
[1749973629888,0.00104751,105590.0,105580.0,1.52693956]
[1749973630096,0.00104751,105590.0,105580.0,1.50916451]
[1749973630303,0.00104751,105590.0,105580.0,1.52693944]
[1749973630521,0.00104751,105590.0,105580.0,1.5202739]
[1749973630736,0.00104751,105590.0,105580.0,1.62308864]
[1749973630953,0.00104751,105590.0,105580.0,1.62308863]
[1749973631373,0.00104751,105590.0,105580.0,1.61642303]
[1749973631579,0.00104751,105590.0,105580.0,1.62308863]
[1749973632075,0.00104751,105590.0,105580.0,1.61642303]
[1749973632524,0.00104751,105590.0,105580.0,1.60531369]
[1749973632743,0.00104751,105590.0,105580.0,1.89612863]
[1749973633164,0.00104751,105590.0,105580.0,1.87835369]
[1749973633584,0.00104751,105590.0,105580.0,1.89612862]
[1749973633913,0.00104751,105590.0,105580.0,1.8961283]
[1749973634121,0.00104751,105590.0,105580.0,1.89612827]
[1749973634334,0.00104751,105590.0,105580.0,1.87835355]
[1749973634549,0.00104751,105590.0,105580.0,1.89612803]
[1749973634757,0.00104751,105590.0,105580.0,1.89606135]
[1749973634971,0.00104751,105590.0,105580.0,1.89606154]
[1749973635191,0.00104751,105590.0,105580.0,1.78218617]
[1749973635413,0.00104751,105590.0,105580.0,1.79991232]
[1749973636347,0.00104751,105590.0,105580.0,1.78218617]
[1749973636767,0.00104751,105590.0,105580.0,1.79991232]
[1749973636969,0.00104751,105590.0,105580.0,1.88350205]
[1749973637811,0.00104751,105590.0,105580.0,1.8657759]
[1749973639678,0.00104751,105590.0,105580.0,1.87685475]
[1749973639892,0.00104751,105590.0,105580.0,1.88350205]
[1749973640100,0.00104751,105590.0,105580.0,1.8657759]
[1749973640538,0.00104751,105590.0,105580.0,1.88350205]
[1749973641002,0.00104751,105590.0,105580.0,1.8591286]
[1749973641211,0.00104751,105590.0,105580.0,1.87685475]
[1749973641483,0.00104751,105590.0,105580.0,1.8591286]
[1749973641734,0.00104751,105590.0,105580.0,1.8834873]
[1749973642146,0.00104751,105590.0,105580.0,1.87684402]
[1749973642999,0.00104751,105590.0,105580.0,1.86577188]
[1749973643488,0.00104751,105590.0,105580.0,1.8591286]
[1749973643702,0.00104751,105590.0,105580.0,1.87684402]
[1749973643916,0.00104751,105590.0,105580.0,1.86577188]
[1749973644136,0.00104751,105590.0,105580.0,1.8834873]
[1749973644789,0.00104751,105590.0,105580.0,1.88349921]
[1749973644998,0.00104751,105590.0,105580.0,1.8591286]
[1749973645445,0.00104751,105590.0,105580.0,1.86577627]
[1749973645654,0.00104751,105590.0,105580.0,1.88350339]
[1749973646311,0.00104751,105590.0,105580.0,1.87685572]
[1749973646531,0.00104751,105590.0,105580.0,1.88350339]
[1749973646741,0.00104751,105590.0,105580.0,1.87685572]
[1749973646924,0.00104751,105590.0,105580.0,1.88350339]
[1749973647189,0.00104751,105590.0,105580.0,1.87685572]
[1749973647398,0.00104751,105590.0,105580.0,1.88350339]
[1749973647608,0.00104751,105590.0,105580.0,1.79991366]
[1749973648281,0.00104751,105590.0,105580.0,1.77553887]
[1749973648517,0.00104751,105590.0,105580.0,1.79991366]
[1749973648740,0.00104751,105590.0,105580.0,1.7836938]
[1749973648949,0.03404751,105590.0,105580.0,1.49720894]
[1749973649156,0.03404751,105590.0,105580.0,1.77688045]
[1749973649339,0.03404751,105590.0,105580.0,1.70493892]
[1749973649579,0.03404751,105590.0,105580.0,1.72937891]
[1749973649792,0.01764751,105590.0,105580.0,1.72937875]
[1749973650005,0.01764751,105590.0,105580.0,1.72271333]
[1749973650216,0.03394751,105590.0,105580.0,1.71160431]
[1749973650443,0.03394751,105590.0,105580.0,1.7293787]
[1749973650858,0.03394751,105590.0,105580.0,1.71160431]
[1749973651085,0.03394751,105590.0,105580.0,1.72271331]
[1749973651499,0.03394751,105590.0,105580.0,1.7293787]
[1749973651707,0.03394751,105590.0,105580.0,1.71160431]
[1749973652125,0.03394751,105590.0,105580.0,1.7293787]
[1749973652414,0.03394751,105590.0,105580.0,1.72271331]
[1749973652678,0.03394751,105590.0,105580.0,1.71160431]
[1749973652902,0.03394751,105590.0,105580.0,1.53505897]
[1749973653139,0.03394751,105590.0,105580.0,1.72937907]
[1749973653388,0.03394751,105590.0,105580.0,1.72937914]
[1749973653624,0.03394751,105590.0,105580.0,1.09029332]
[1749973653851,0.03394751,105590.0,105580.0,1.67250927]
[1749973654239,0.03394751,105590.0,105580.0,1.72937926]
[1749973654475,0.03394751,105590.0,105580.0,1.72271372]
[1749973654681,0.03394751,105590.0,105580.0,1.72937927]
[1749973654885,0.03394751,105590.0,105580.0,1.70493892]
[1749973655114,0.03394751,105590.0,105580.0,1.71160447]
[1749973655324,0.03394751,105590.0,105580.0,1.72937927]
[1749973655537,0.03394751,105590.0,105580.0,1.71160447]
[1749973655746,0.03394751,105590.0,105580.0,1.72937927]
[1749973656167,0.03394751,105590.0,105580.0,1.71160447]
[1749973656346,0.03394751,105590.0,105580.0,1.72271372]
[1749973657480,0.03394751,105590.0,105580.0,1.72937927]
[1749973657914,0.03394751,105590.0,105580.0,1.71160447]
[1749973658122,0.03394751,105590.0,105580.0,1.72937927]
[1749973659389,0.03394751,105590.0,105580.0,1.72271372]
[1749973659613,0.03394751,105590.0,105580.0,1.71160447]
[1749973659824,0.03394751,105590.0,105580.0,1.72271372]
[1749973660048,0.03394751,105590.0,105580.0,1.72937928]
[1749973660266,0.03394751,105590.0,105580.0,1.71160447]
[1749973660536,0.03394751,105590.0,105580.0,1.72937928]
[1749973661819,0.03394751,105590.0,105580.0,1.70493892]
[1749973662035,0.01764751,105590.0,105580.0,1.71160447]
[1749973662241,0.00104751,105590.0,105580.0,1.80775369]
[1749973662867,0.00104751,105590.0,105580.0,1.80775367]
[1749973663077,0.00104751,105590.0,105580.0,1.71159656]
[1749973663285,0.00104751,105590.0,105580.0,1.71159655]
[1749973663500,0.00104751,105590.0,105580.0,1.70493892]
[1749973663930,0.00104751,105590.0,105580.0,1.72269261]
[1749973664350,0.00104751,105590.0,105580.0,1.72935024]
[1749973664559,0.00104751,105590.0,105580.0,1.71159499]
[1749973664770,0.00104751,105590.0,105580.0,1.74965288]
[1749973664984,0.00104751,105590.0,105580.0,1.73855943]
[1749973665199,0.00104751,105590.0,105580.0,1.72934451]
[1749973665404,0.00104751,105590.0,105580.0,1.71159499]
[1749973665612,0.00104751,105590.0,105580.0,1.72934451]
[1749973666213,0.00104751,105590.0,105580.0,1.70493892]
[1749973666409,0.00104751,105590.0,105580.0,1.71159499]
[1749973666623,0.00104751,105590.0,105580.0,1.72934451]
[1749973666821,0.00104751,105590.0,105580.0,1.70493892]
[1749973667050,0.00104751,105590.0,105580.0,1.80009345]
[1749973667341,0.00104751,105590.0,105580.0,1.80674951]
[1749973667560,0.00104751,105590.0,105580.0,1.8067495]
[1749973667761,0.00104751,105590.0,105580.0,1.80674951]
[1749973668162,0.00104751,105590.0,105580.0,1.80674952]
[1749973668364,0.00104751,105590.0,105580.0,1.78234393]
[1749973668581,0.00104751,105590.0,105580.0,1.80674952]
[1749973668740,0.00104751,105590.0,105580.0,1.80009345]
[1749973668943,0.00104751,105590.0,105580.0,1.789]
[1749973669104,0.00104751,105590.0,105580.0,1.80674952]
[1749973669313,0.00104751,105590.0,105580.0,1.78234393]
[1749973669509,0.00104751,105590.0,105580.0,1.80674952]
[1749973670799,0.00104751,105590.0,105580.0,1.789]
[1749973671407,0.00104751,105590.0,105580.0,1.80674952]
[1749973671604,0.00104751,105590.0,105580.0,1.789]
[1749973671811,0.00104751,105590.0,105580.0,1.80009345]
[1749973672015,0.00104751,105590.0,105580.0,1.78234393]
[1749973672209,0.00104751,105590.0,105580.0,1.80674946]
[1749973672421,0.00104751,105590.0,105580.0,1.78234393]
[1749973672618,0.00104751,105590.0,105580.0,1.80009339]
[1749973672860,0.00104751,105590.0,105580.0,1.78234393]
[1749973673092,0.00104751,105590.0,105580.0,1.80009339]
[1749973673266,0.00104751,105590.0,105580.0,1.80674943]
[1749973673470,0.00104751,105590.0,105580.0,1.78234393]
[1749973673863,0.00104751,105590.0,105580.0,1.80674943]
[1749973675028,0.00104751,105590.0,105580.0,1.80678451]
[1749973675658,0.00104751,105590.0,105580.0,1.78234393]
[1749973675869,0.00104751,105590.0,105580.0,1.80678451]
[1749973676072,0.00104751,105590.0,105580.0,1.61246451]
[1749973676275,0.00104751,105590.0,105580.0,1.5350595]
[1749973676486,0.00104751,105590.0,105580.0,1.7293395]
[1749973676735,0.00104751,105590.0,105580.0,1.71156453]
[1749973677000,0.00104751,105590.0,105580.0,1.7293395]
[1749973677245,0.00104751,105590.0,105580.0,1.71156453]
[1749973677492,0.00104751,105590.0,105580.0,1.79048057]
[1749973677727,0.00104751,105590.0,105580.0,1.76603999]
[1749973677933,0.00104751,105590.0,105580.0,1.28457368]
[1749973678160,0.01634751,105590.0,105580.0,1.72933962]
[1749973678373,0.01634751,105590.0,105580.0,1.6914902]
[1749973678788,0.01634751,105590.0,105580.0,1.69149021]
[1749973679208,0.01634751,105590.0,105580.0,1.67371515]
[1749973679390,0.01634751,105590.0,105580.0,1.66704951]
[1749973679603,0.01634751,105590.0,105580.0,1.69149021]
[1749973680084,0.01634751,105590.0,105580.0,1.6914902]
[1749973680500,0.01634751,105590.0,105580.0,1.67371515]
[1749973680684,0.01634751,105590.0,105580.0,1.68482456]
[1749973680920,0.01634751,105590.0,105580.0,1.6914902]
[1749973681125,0.01634751,105590.0,105580.0,1.67371515]
[1749973681337,0.01634751,105590.0,105580.0,1.69149021]
[1749973681554,0.01634751,105590.0,105580.0,1.68482457]
[1749973681761,0.01634751,105590.0,105580.0,1.67371515]
[1749973681976,0.01634751,105590.0,105580.0,1.68482457]
[1749973682185,0.01634751,105590.0,105580.0,1.69149021]
[1749973682397,0.01634751,105590.0,105580.0,1.67371531]
[1749973682579,0.01634751,105590.0,105580.0,1.68482499]
[1749973682813,0.01634751,105590.0,105580.0,1.69149079]
[1749973683044,0.01634751,105590.0,105580.0,1.68482499]
[1749973683251,0.01634751,105590.0,105580.0,1.66704951]
[1749973683453,0.01634751,105590.0,105580.0,1.76319873]
[1749973683661,0.01634751,105590.0,105580.0,1.69149079]
[1749973683867,0.01634751,105590.0,105580.0,1.68482499]
[1749973684076,0.01634751,105590.0,105580.0,1.69149079]
[1749973684499,0.01634751,105590.0,105580.0,1.66704951]
[1749973684711,0.01634751,105590.0,105580.0,1.69149079]
[1749973685354,0.01634751,105590.0,105580.0,1.68482499]
[1749973685563,0.01634751,105590.0,105580.0,1.69149079]
[1749973685769,0.01634751,105590.0,105580.0,1.67371531]
[1749973686038,0.01634751,105590.0,105580.0,1.69149079]
[1749973686242,0.01634751,105590.0,105580.0,1.68482499]
[1749973686447,0.01634751,105590.0,105580.0,1.67371531]
[1749973686666,0.01634751,105590.0,105580.0,1.69149079]
[1749973688385,0.01634751,105590.0,105580.0,1.66704951]
[1749973688593,0.01634751,105590.0,105580.0,1.68482499]
[1749973688797,0.01634751,105590.0,105580.0,1.66704951]
[1749973689008,0.01634751,105590.0,105580.0,1.68482499]
[1749973689239,0.01634751,105590.0,105580.0,1.66704951]
[1749973689428,0.01634751,105590.0,105580.0,1.67371531]
[1749973689631,0.01634751,105590.0,105580.0,1.68482499]
[1749973689834,0.01634751,105590.0,105580.0,1.69149081]
[1749973690040,0.01634751,105590.0,105580.0,1.66704951]
[1749973690242,0.01634751,105590.0,105580.0,1.67371532]
[1749973690659,0.01634751,105590.0,105580.0,1.78097422]
[1749973690863,0.00104751,105590.0,105580.0,1.78764003]
[1749973691087,0.00104751,105590.0,105580.0,1.76319873]
[1749973691300,0.00104751,105590.0,105580.0,1.78097422]
[1749973691511,0.00104751,105590.0,105580.0,1.78764003]
[1749973691725,0.00104751,105590.0,105580.0,1.78097422]
[1749973691937,0.00104751,105590.0,105580.0,1.78764003]
[1749973692402,0.00104751,105590.0,105580.0,1.78097422]
[1749973692608,0.00104751,105590.0,105580.0,1.78764003]
[1749973692813,0.00104751,105590.0,105580.0,1.78097422]
[1749973693050,0.00104751,105590.0,105580.0,1.67363532]
[1749973693270,0.00104751,105590.0,105580.0,1.69141082]
[1749973693692,0.00104751,105590.0,105580.0,1.68474501]
[1749973693905,0.00104751,105590.0,105580.0,1.69141082]
[1749973694765,0.01051738,105590.0,105580.0,1.2399792]
[1749973694977,0.03324751,105590.0,105580.0,1.69141109]
[1749973695181,0.03324751,105590.0,105580.0,1.69141115]
[1749973695389,0.03324751,105590.0,105580.0,1.49054527]
[1749973695612,0.70200148,105590.0,105580.0,0.12219284]
[1749973695825,0.70141683,105590.0,105580.0,0.08631019]
[1749973696060,0.2477657,105590.0,105580.0,0.21297889]
[1749973696272,0.70141503,105590.0,105580.0,0.24141934]
[1749973696483,0.70141503,105590.0,105580.0,0.21964638]
[1749973696484,0.70141502,105590.0,105580.0,0.21964638]
[1749973696918,0.69253152,105590.0,105580.0,0.1952]
[1749973697130,0.70141502,105590.0,105580.0,0.21964638]
[1749973697556,0.70141502,105590.0,105580.0,0.21297919]
[1749973697772,0.70141502,105590.0,105580.0,0.21964638]
[1749973698251,0.69253152,105590.0,105580.0,0.21297919]
[1749973698490,0.70141498,105590.0,105580.0,0.21964638]
[1749973698763,0.70141498,105590.0,105580.0,0.21297919]
[1749973698999,0.69524939,105590.0,105580.0,0.1952]
[1749973699234,0.69524939,105590.0,105580.0,0.21964638]
[1749973699474,0.68636593,105590.0,105580.0,0.21955825]
[1749973699950,0.68636593,105590.0,105580.0,0.21955824]
[1749973701507,0.68636593,105590.0,105580.0,0.21291509]
[1749973701926,0.68636593,105590.0,105580.0,0.21955824]
[1749973703300,0.68636593,105590.0,105580.0,0.21291509]
[1749973703525,0.68636593,105590.0,105580.0,0.21955824]
[1749973704185,0.68636593,105590.0,105580.0,0.1952]
[1749973704392,0.68636593,105590.0,105580.0,0.21955824]
[1749973704813,0.68636593,105590.0,105580.0,0.21953887]
[1749973705455,0.68636593,105590.0,105580.0,0.20183787]
[1749973705681,0.68636593,105590.0,105580.0,0.21953887]
[1749973706741,0.68636593,105590.0,105580.0,0.20183787]
[1749973707038,0.68636593,105590.0,105580.0,0.21953887]
[1749973707241,0.68636593,105590.0,105580.0,0.20183787]
[1749973707450,0.68636593,105590.0,105580.0,0.212901]
[1749973707651,0.68636593,105590.0,105580.0,0.20183787]
[1749973707885,0.68636593,105590.0,105580.0,0.212901]
[1749973708097,0.24160011,105590.0,105580.0,0.20183787]
[1749973708303,0.68636593,105590.0,105580.0,0.20183787]
[1749973708509,0.24160011,105590.0,105580.0,0.22237249]
[1749973708716,0.06165811,105590.0,105580.0,0.96720874]
[1749973708930,0.04515811,105590.0,105580.0,0.96720774]
[1749973709168,0.04515811,105590.0,105580.0,0.96720765]
[1749973709419,0.04515811,105590.0,105580.0,0.96720745]
[1749973709630,0.02621747,105590.0,105580.0,0.96720731]
[1749973709841,0.01674751,105590.0,105580.0,1.0633561]
[1749973710067,0.01674751,105590.0,105580.0,1.05674009]
[1749973710068,0.00104751,105590.0,105580.0,1.05674009]
[1749973710330,0.00104751,105590.0,105580.0,1.04566421]
[1749973710551,0.00104751,105590.0,105580.0,1.05673964]
[1749973710793,0.00104751,105590.0,105580.0,1.06338487]
[1749973711015,0.01051729,105590.0,105580.0,0.96723556]
[1749973711235,0.01051729,105590.0,105580.0,0.94286987]
[1749973711448,0.01051729,105590.0,105580.0,0.96723555]
[1749973711988,0.01051729,105590.0,105580.0,0.94286987]
[1749973712249,0.01051729,105590.0,105580.0,0.9672806]
[1749973712755,0.00104751,105590.0,105580.0,0.94952734]
[1749973712998,0.00104751,105590.0,105580.0,1.03901909]
[1749973713205,0.00104751,105590.0,105580.0,1.06342982]
[1749973713418,0.00104751,105590.0,105580.0,0.94952734]
[1749973713625,0.00104751,105590.0,105580.0,0.9672806]
[1749973713799,0.00104751,105590.0,105580.0,0.94286987]
[1749973714018,0.00104751,105590.0,105580.0,0.9672806]
[1749973714314,0.00104751,105590.0,105580.0,0.96062313]
[1749973714515,0.00104751,105590.0,105580.0,0.9672806]
[1749973714856,0.00104751,105590.0,105580.0,0.94952734]
[1749973715060,0.00104751,105590.0,105580.0,0.9672806]
[1749973715215,0.00104751,105590.0,105580.0,1.06342982]
[1749973715619,0.00104751,105590.0,105580.0,1.05677235]
[1749973715822,0.00104751,105590.0,105580.0,1.06342982]
[1749973716227,0.00104751,105590.0,105580.0,0.9672806]
[1749973716973,0.00104751,105590.0,105580.0,0.96062313]
[1749973717189,0.00104751,105590.0,105580.0,0.94952734]
[1749973717403,0.00104751,105590.0,105580.0,0.29260542]
[1749973717615,0.68656494,105590.0,105580.0,0.02541073]
[1749973717823,0.68656575,105590.0,105580.0,0.02541202]
[1749973718064,0.67709561,105590.0,105580.0,0.21953219]
[1749973718275,0.32857155,105590.0,105580.0,0.00765818]
[1749973718482,0.78220949,105590.0,105580.0,0.04749842]
[1749973718695,0.77333737,105590.0,105580.0,0.06525444]
[1749973718899,0.77333737,105590.0,105580.0,0.06525462]
[1749973719101,0.78220909,105590.0,105580.0,0.01875618]
[1749973719308,0.78220909,105590.0,105580.0,0.02541474]
[1749973719507,0.78220909,105590.0,105580.0,0.001]
[1749973719737,0.78220908,105590.0,105580.0,0.02541475]
[1749973719915,0.78220903,105590.0,105580.0,0.06525517]
[1749973720149,0.77333737,105590.0,105580.0,0.04084]
[1749973720352,0.78220907,105590.0,105580.0,0.06525481]
[1749973720558,0.78220907,105590.0,105580.0,0.06525476]
[1749973720761,0.77333737,105590.0,105580.0,0.04084]
[1749973720964,0.77333737,105590.0,105580.0,0.05859651]
[1749973720965,0.78220908,105590.0,105580.0,0.05859651]
[1749973721143,0.80647936,105590.0,105580.0,0.04084]
[1749973721389,0.78220902,105590.0,105580.0,0.02541498]
[1749973721599,0.77333737,105590.0,105580.0,0.01875722]
[1749973721815,0.77333737,105590.0,105580.0,0.0254162]
[1749973722022,0.78220876,105590.0,105580.0,0.00765904]
[1749973722226,0.78220876,105590.0,105580.0,0.02541649]
[1749973722402,0.78220876,105590.0,105580.0,0.01875745]
[1749973722606,0.78220876,105590.0,105580.0,0.00765904]
[1749973722809,0.77333737,105590.0,105580.0,0.001]
[1749973723034,0.78220876,105590.0,105580.0,0.001]
[1749973723244,0.77333737,105590.0,105580.0,0.001]
[1749973723456,0.78220876,105590.0,105580.0,0.00765904]
[1749973723664,0.80647907,105590.0,105580.0,0.01875745]
[1749973723896,0.77333737,105590.0,105580.0,0.001]
[1749973724082,0.77333737,105590.0,105580.0,0.00765904]
[1749973724293,0.78220876,105590.0,105580.0,0.00765904]
[1749973724502,0.78220876,105590.0,105580.0,0.02541649]
[1749973724708,0.78220876,105590.0,105580.0,0.00765906]
[1749973724923,0.78220872,105590.0,105580.0,0.02541656]
[1749973725134,0.77333737,105590.0,105580.0,0.02541657]
[1749973725352,0.77333737,105590.0,105580.0,0.00765906]
[1749973725559,0.78220871,105590.0,105580.0,0.00765906]
[1749973725765,0.78220871,105590.0,105580.0,0.001]
[1749973725965,0.78220871,105590.0,105580.0,0.00765906]
[1749973726202,0.78220871,105590.0,105580.0,0.001]
[1749973726410,0.78220871,105590.0,105580.0,0.00765906]
[1749973726614,0.78220871,105590.0,105580.0,0.001]
[1749973726798,0.78220871,105590.0,105580.0,0.00765906]
[1749973727221,0.77333737,105590.0,105580.0,0.00765906]
[1749973727366,0.78220871,105590.0,105580.0,0.00765906]
[1749973727562,0.77333737,105590.0,105580.0,0.00765907]
[1749973727764,0.78220871,105590.0,105580.0,0.001]
[1749973728370,0.77333737,105590.0,105580.0,0.00765907]
[1749973728576,0.77333737,105590.0,105580.0,0.001]
[1749973728855,0.7822087,105590.0,105580.0,0.00765906]
[1749973729175,0.77333737,105590.0,105580.0,0.00765906]
[1749973729389,0.77333737,105590.0,105580.0,0.001]
[1749973729592,0.78222102,105590.0,105580.0,0.001]
[1749973729875,0.78222102,105590.0,105580.0,0.00766831]
[1749973730053,0.80649133,105590.0,105580.0,0.00766831]
[1749973730260,0.78222103,105590.0,105580.0,0.00766829]
[1749973730488,0.7821924,105590.0,105580.0,0.00764683]
[1749973730744,0.7821924,105590.0,105580.0,0.001]
[1749973731170,0.77333737,105590.0,105580.0,0.00764683]
[1749973731375,0.77333737,105590.0,105580.0,0.001]
[1749973731584,0.7821924,105590.0,105580.0,0.00764683]
[1749973731792,0.77333737,105590.0,105580.0,0.001]
[1749973732029,0.78219218,105590.0,105580.0,0.001]
[1749973732237,0.92761737,105590.0,105580.0,0.001]
[1749973732461,0.93647214,105590.0,105580.0,0.001]
[1749973732673,0.92661737,105590.0,105580.0,0.001]
[1749973732884,0.94347214,105590.0,105580.0,0.002]
[1749973733322,0.92661737,105590.0,105580.0,0.001]
[1749973733531,0.94147218,105590.0,105580.0,0.002]
[1749973733754,0.93261737,105590.0,105580.0,0.002]
[1749973733971,0.9414722,105590.0,105580.0,0.001]
[1749973734186,0.78719223,105590.0,105580.0,0.001]
[1749973734397,0.93761737,105590.0,105580.0,0.002]
[1749973734618,0.94647222,105590.0,105580.0,0.002]
[1749973734822,0.94147222,105590.0,105580.0,0.001]
[1749973735044,0.94447222,105590.0,105580.0,0.001]
[1749973735258,0.93561737,105590.0,105580.0,0.001]
[1749973735678,0.79019222,105590.0,105580.0,0.001]